[Event "Kvika Banki League Iceland 2022-23"]
[Site "Reykjavik"]
[Date "2022.10.15"]
[Round "4.15"]
[White "Petersson, Baldur Teodor"]
[Black "Ingvason, Johann"]
[Result "1-0"]
[ECO "B40"]
[WhiteElo "2230"]
[BlackElo "2140"]
[Annotator "TA"]
[PlyCount "93"]
[EventDate "2022.10.13"]
[EventType "team-tourn"]
[EventCountry "ISL"]
[SourceTitle "playchess.com"]
[Source "ChessBase"]
[SourceQuality "1"]
[TimeControl "5400+30"]

{[%evp 9,93,-10,2,0,14,0,64,71,115,103,95,119,225,139,188,220,327,320,335,336,314,312,328,327,332,329,341,343,321,294,291,294,316,300,386,394,387,387,374,252,245,242,241,220,222,200,190,185,408,404,397,363,459,451,383,258,234,0,768,771,730,730,850,631,850,839,1026,965,927,722,892,699,871,760,762,764,945,875,29982,29983,29983,29984,29984,29984,29984,29984]} 1. e4 {[%emt 0:00:21]} e6 {[%emt 0:00:11]} 2. d3 {[%emt 0:00:08]} d5 {[%emt 0:00:09]} 3. Nd2 {[%emt 0:00:07]} c5 {[%emt 0:00:19]} 4. Ngf3 {[%emt 0:00:08]} Nc6 {[%emt 0:00:08]} 5. g3 {[%emt 0:00:07]} Qc7 {[%emt 0:01:31]} 6. Bg2 {[%emt 0:00:18] B40: Sicilian: 2...e6, Unusual lines.} Be7 {[%emt 0:00:28]} 7. O-O {[%emt 0:00:19]} h5 {[%emt 0:00:37] [#]} (7... Nf6 $11) 8. Re1 $146 {[%emt 0:02:14] White is slightly better.} ({Predecessor:} 8. h4 Nf6 9. Re1 Bd7 10. c3 O-O-O 11. a3 Ne5 12. Nxe5 Qxe5 13. Nc4 Qc7 14. Bf4 {1-0 (27) Barata,A (2157)-De Sousa Filho,A (1955) Fortaleza 2014}) 8... h4 {[%emt 0:02:12]} 9. exd5 {[%emt 0:01:45]} (9. gxh4 $6 Nf6 $11) 9... exd5 {[%emt 0:02:14]} 10. Nxh4 {[%emt 0:02:04][%cal Bf3h4,Bh4g6,Bg6f4][%mdl 32]} Be6 {[%emt 0:04:16]} (10... Kf8 $16) 11. Ndf3 {[%emt 0:06:48][%cal Oh4g6]} O-O-O {[%emt 0:01:25]} (11... Qd7 $16 12. Ng5 Bxg5 13. Bxg5 Nge7) 12. Ng6 $18 {[%emt 0:00:48]} Rh5 {[%emt 0:16:29]} (12... fxg6 $142 13. Rxe6 Qd7) 13. Nf4 {[%emt 0:03:09]} Rh8 {[%emt 0:26:49]} 14. Rxe6 {[%emt 0:09:32]} (14. Nxe6 fxe6 15. Rxe6 Bd6) 14... fxe6 {[%emt 0:00:09]} 15. Nxe6 {[%emt 0:00:05]} Qd7 {[%emt 0:07:28]} 16. Nxd8 {[%emt 0:00:14]} Bxd8 {[%emt 0:00:17]} 17. Bf4 {[%emt 0:03:14]} Nge7 {[%emt 0:00:31]} 18. Qd2 {[%emt 0:02:58]} Ng6 {[%emt 0:00:17]} 19. Re1 {[%emt 0:00:28]} Nxf4 {[%emt 0:00:40]} 20. Qxf4 {[%emt 0:00:08]} (20. gxf4 $6 Qf5 21. Ne5 Bc7 $18) 20... Bf6 {[%emt 0:04:31]} 21. h4 {[%emt 0:02:06]} Bxb2 {[%emt 0:04:38]} 22. Ng5 {[%emt 0:00:50] aiming for Bh3.} Qc7 {[%emt 0:00:10]} 23. Qf5+ {[%emt 0:01:54]} Qd7 {[%emt 0:02:37]} 24. Qxd5 {[%emt 0:07:08]} Qxd5 {[%emt 0:00:34]} 25. Bxd5 {[%emt 0:00:14]} Nb4 {[%emt 0:01:03]} 26. Bg2 {[%emt 0:01:43] Strongly threatening Nf7.} Bf6 {[%emt 0:01:46]} 27. Nf7 {[%emt 0:00:30]} Rf8 {[%emt 0:00:34]} 28. Nd6+ {[%emt 0:00:50]} Kb8 $2 {[%emt 0:03:06]} (28... Kd7 {was necessary.}) 29. Nxb7 {[%emt 0:05:13]} Bd4 {[%emt 0:02:03]} 30. Re7 {[%emt 0:01:25] Nd6 is the strong threat.} Rxf2 {[%emt 0:02:17] [#]} 31. Kh1 $1 {[%emt 0:01:07]} (31. Re8+ Kc7 32. Re7+ Kb6 33. Re6+ Kc7 34. Re7+ Kb6 $14) 31... Bf6 {[%emt 0:10:15]} 32. Rf7 {[%emt 0:02:43]} (32. Re8+ Kc7 $16) 32... Bd4 {[%emt 0:00:22] [#]} (32... Rxc2 $2 33. Nd6 Rc1+ 34. Kh2 $18) 33. Re7 {[%emt 0:02:42]} ({Not} 33. Rxf2 Bxf2 34. h5 c4 $14) (33. Rd7 $1 $18 Kc8 34. Bh3 Rf1+ 35. Kh2 Rf2+ 36. Kg1 (36. Kh1 Rf1+ 37. Kh2 Rf2+ 38. Kg1 Kb8 $18)) 33... Nxa2 $2 {[%emt 0:03:48][%mdl 8192]} (33... Rxc2 $2 34. Nd6 Rxg2 35. Kxg2 $18) (33... Bf6 $11 34. Rd7 (34. Re8+ Kc7 $16) 34... Re2 35. Nxc5 Re1+ 36. Kh2 Re7) 34. Nd6 {[%emt 0:05:48] Threatening mate with Rb7+.} Rxg2 {[%emt 0:00:18]} 35. Kxg2 {[%emt 0:00:07][%mdl 4096] Endgame KRN-KBN} a5 {[%emt 0:01:12]} 36. Rb7+ {[%emt 0:02:26]} Ka8 {[%emt 0:00:12]} 37. Rb5 {[%emt 0:00:06]} Bc3 {[%emt 0:01:38]} 38. Rxc5 {[%emt 0:00:13] And now Rc8+ would win.} Bb4 {[%emt 0:00:02]} 39. Rc8+ {[%emt 0:00:21]} Ka7 {[%emt 0:00:00]} 40. Nc4 {[%emt 0:00:30]} Bc3 {[%emt 0:00:36]} 41. h5 {[%emt 0:01:36][%cal Bh4h5,Bh5h6][%mdl 32]} a4 {[%emt 0:00:22]} 42. g4 {[%emt 0:00:56]} Bf6 {[%emt 0:02:06]} 43. Rc7+ {[%emt 0:00:30]} Ka6 {[%emt 0:00:11]} 44. Rc6+ {[%emt 0:00:07] White mates.} Kb5 {[%emt 0:00:04] [#]} 45. Rxf6 $1 {[%emt 0:00:20]} gxf6 {[%emt 0:00:20]} 46. h6 {[%emt 0:00:06]} Nb4 {[%emt 0:00:05]} 47. Na3+ {[%emt 0:00:30] Weighted Error Value: White=0.31/Black=0.34} 1-0

[Event "Kvika Banki League Iceland 2022-23"]
[Site "Reykjavik"]
[Date "2022.10.15"]
[Round "4.16"]
[White "Sigurjonsson, Siguringi"]
[Black "Gretarsson, Andri A"]
[Result "1/2-1/2"]
[ECO "D05"]
[WhiteElo "2072"]
[BlackElo "2267"]
[Annotator "TA"]
[PlyCount "66"]
[EventDate "2022.10.13"]
[EventType "team-tourn"]
[EventCountry "ISL"]
[SourceTitle "playchess.com"]
[Source "ChessBase"]
[SourceQuality "1"]
[TimeControl "5400+30"]

{[%evp 9,66,3,4,0,9,3,0,-1,-8,-19,-4,-11,-7,-22,0,-47,59,-18,-23,-12,-20,-25,-15,-23,-12,-17,-4,-15,-14,-7,-4,-12,0,-25,-10,-58,-51,-56,-41,-61,0,0,0,0,0,0,0,0,0,0,0,-66,-50,-49,651,0,273,225,1447]} 1. d4 {[%emt 0:04:03]} d5 {[%emt 0:01:03]} 2. Nf3 {[%emt 0:00:28]} Nf6 {[%emt 0:00:32]} 3. e3 {[%emt 0:00:41]} e6 {[%emt 0:05:15]} 4. Be2 {[%emt 0:01:25]} c5 {[%emt 0:01:39]} 5. b3 {[%emt 0:00:42]} Bd6 {[%emt 0:13:36]} 6. O-O {[%emt 0:02:54] D05: Colle System with ...e6.} O-O {[%emt 0:00:14]} 7. Bb2 {[%emt 0:03:24]} b6 {[%emt 0:05:47]} 8. Nbd2 {[%emt 0:03:13] The position is equal.} Bb7 {[%emt 0:05:04]} 9. Ne5 {[%emt 0:02:25] [#]} Qc7 $146 {[%emt 0:09:44]} ({Predecessor:} 9... Nc6 10. Nxc6 Bxc6 11. dxc5 bxc5 12. c4 a5 13. cxd5 exd5 14. Rc1 Qe7 15. Bf3 Rfd8 {0-1 (48) Manukyan,S (2150)-Lashkin,J (2386) Chess.com INT 2021}) 10. Rc1 {[%emt 0:09:27]} Nc6 {[%emt 0:04:15][%cal Rc6e5]} 11. f4 {[%emt 0:05:32]} Ne4 {[%emt 0:05:22]} 12. Bf3 {[%emt 0:21:33]} (12. c4 $11) 12... f6 {[%emt 0:16:39]} (12... cxd4 $15 13. Nxe4 (13. Nxc6 dxe3 14. Nxe4 dxe4 $17) 13... dxe4 14. Bxe4 (14. Nxc6 $2 exf3 15. Nxd4 fxg2 $19) 14... dxe3) 13. Bxe4 {[%emt 0:02:06]} (13. Nxe4 $14 dxe4 14. Bxe4) 13... dxe4 $11 {[%emt 0:07:16]} 14. Nec4 {[%emt 0:01:25]} Ne7 {[%emt 0:04:49]} (14... cxd4 {with more complications.} 15. Nxe4 Be7 16. exd4 Nxd4 17. Qxd4 Rad8) 15. Qe2 {[%emt 0:03:20]} cxd4 {[%emt 0:00:45]} 16. Nxd6 {[%emt 0:01:02]} Qxd6 {[%emt 0:00:30]} 17. Bxd4 {[%emt 0:02:34]} Rfd8 {[%emt 0:01:15]} 18. Rfd1 {[%emt 0:01:45]} Nf5 {[%emt 0:00:48]} 19. Bb2 {[%emt 0:05:41]} Qc5 {[%emt 0:02:32]} 20. Kf2 {[%emt 0:01:11]} Rac8 {[%emt 0:01:03]} 21. a3 {[%emt 0:12:11]} Rd6 {[%emt 0:02:53]} 22. b4 {[%emt 0:02:58]} (22. Nf1 $11 {was preferrable.}) 22... Qc6 {[%emt 0:00:58]} 23. Nb3 {[%emt 0:01:56]} Rxd1 {[%emt 0:01:31]} 24. Qxd1 {[%emt 0:01:23]} Nd6 {[%emt 0:00:59]} ({Better is} 24... e5 $15 25. Qg4 Qe6) 25. Qg4 {[%emt 0:02:32][%csl LRe6,LRf6]} Kf7 {[%emt 0:01:13]} 26. Qh5+ $1 {[%emt 0:00:39]} ({Much worse is} 26. Nd4 Qc4 $15) 26... Kg8 {[%emt 0:00:17]} 27. Qg4 {[%emt 0:00:20][%csl LRe6,LRf6]} Kf7 {[%emt 0:01:39]} 28. Qh5+ $1 $40 {[%emt 0:00:08][%mdl 128] White attacks.} ({Much weaker is} 28. Nd4 Qc4 $15) 28... Kg8 {[%emt 0:00:26]} 29. Qg4 {[%emt 0:00:02][%csl LRe6,LRf6]} Kf7 {[%emt 0:00:02]} 30. Nd4 {[%emt 0:00:05]} (30. Qh5+ $1 $11 Kg8) 30... Qd5 31. Rd1 {[%emt 0:00:12]} Nc4 $2 {[%emt 0:00:46][%mdl 8192] [#]} (31... Qa2 $15) 32. Ba1 $2 {[%emt 0:00:06]} (32. Nxe6 $1 $18 {[%mdl 512]} Qxd1 33. Qxd1 Kxe6 34. Qg4+ f5 35. Qxg7 Nxb2 36. Qe5+ Kd7 37. Qxf5+ Ke8 38. Qe5+ Kf7 39. Qxb2) 32... Re8 $2 {[%emt 0:03:30][%mdl 8192]} (32... Nxa3 $2 {[#]} 33. Nxe6 $1 {[%mdl 512]} (33. f5 g6 $18) 33... Rxc2+ 34. Kg3 $18) (32... h5 $11 33. Qe2 Nxa3) 33. f5 {[%emt 0:02:05]} Rc8 $2 {[%emt 0:00:58][%mdl 32768] Weighted Error Value: White=0.29 (precise) /Black=0.51. An unexpected result.} (33... Nd6) 1/2-1/2

[Event "Kvika Banki League Iceland 2022-23"]
[Site "Reykjavik"]
[Date "2022.10.15"]
[Round "4.17"]
[White "Steingrimsson, Hedinn"]
[Black "Oleksiyenko, Mykhaylo"]
[Result "1/2-1/2"]
[ECO "D35"]
[WhiteElo "2512"]
[BlackElo "2592"]
[Annotator "TA"]
[PlyCount "37"]
[EventDate "2022.10.13"]
[EventType "team-tourn"]
[EventCountry "ISL"]
[SourceTitle "playchess.com"]
[Source "ChessBase"]
[SourceQuality "1"]
[TimeControl "5400+30"]

{[%evp 13,37,17,17,14,10,4,4,17,58,55,62,8,37,9,24,0,0,0,3,0,14,18,20,25,35,19]} 1. d4 {[%emt 0:00:08]} d5 {[%emt 0:00:22]} 2. c4 {[%emt 0:00:04]} e6 {[%emt 0:00:02]} 3. Nc3 {[%emt 0:00:13]} Nf6 {[%emt 0:00:05]} 4. cxd5 {[%emt 0:00:05]} exd5 {[%emt 0:00:03]} 5. Bg5 {[%emt 0:00:07]} c6 {[%emt 0:00:03]} 6. e3 {[%emt 0:00:06]} Be7 {[%emt 0:00:12] 6...Bd6 is a critical line.} 7. Bd3 {[%emt 0:00:15]} Nbd7 {[%emt 0:00:01][%cal Bb8d7,Bd7f8,Bf8e6][%mdl 32]} 8. h3 {[%emt 0:01:12] D35: Queen's Gambit Declined: Exchange Variation.} Nf8 {[%emt 0:05:12]} 9. Qc2 {[%emt 0:05:31]} Ne6 {[%emt 0:01:25]} 10. Bh4 {[%emt 0:00:11] The position is equal.} Nh5 {[%emt 0:01:47]} 11. Bxe7 {[%emt 0:03:02]} Qxe7 {[%emt 0:00:02]} 12. Nge2 {[%emt 0:00:45]} (12. O-O-O $14) 12... Nf6 {[%emt 0:01:49]} 13. O-O-O {[%emt 0:09:30]} Bd7 {[%emt 0:03:07]} 14. Kb1 {[%emt 0:01:02]} O-O-O {[%emt 0:05:52]} 15. f3 {[%emt 0:07:43]} Kb8 {[%emt 0:03:32]} 16. e4 {[%emt 0:08:42]} dxe4 {[%emt 0:03:50]} 17. fxe4 {[%emt 0:00:03] [#]} Bc8 $146 {[%emt 0:00:17]} ({Predecessor:} 17... Nc7 18. Ng1 Nh5 19. Nf3 Nf4 20. Bc4 f6 21. Rhe1 Qb4 22. Bb3 Rhe8 23. a3 Qa5 {½-½ (62) Lautier,J (2655)-Piket,J (2670) Monte Carlo 1995}) 18. Bc4 {[%emt 0:01:59]} Nc7 {[%emt 0:03:17]} 19. Ng3 {[%emt 0:14:06] Weighted Error Value: White=0.14 (very precise) /Black=0.07 (flawless)} 1/2-1/2

[Event "Kvika Banki League Iceland 2022-23"]
[Site "Reykjavik"]
[Date "2022.10.15"]
[Round "4.18"]
[White "Kjartansson, Gudmundur"]
[Black "Kazakouski, Valery"]
[Result "0-1"]
[ECO "A46"]
[WhiteElo "2456"]
[BlackElo "2538"]
[Annotator "TA"]
[PlyCount "114"]
[EventDate "2022.10.13"]
[EventType "team-tourn"]
[EventCountry "ISL"]
[SourceTitle "playchess.com"]
[Source "ChessBase"]
[SourceQuality "1"]
[TimeControl "5400+30"]

{[%evp 9,114,0,30,23,31,18,18,-19,-17,-17,0,-50,-45,-45,-52,-50,0,-11,-9,-12,-13,-60,-58,-58,0,-6,-15,-20,-12,-14,0,0,0,0,8,7,26,6,20,0,0,-28,-22,-30,-18,-21,-23,-23,-25,-23,-16,-15,-18,-79,-79,-73,0,0,0,0,0,0,0,0,0,-86,-86,-89,-89,-474,-474,-1471,-229,-843,-448,-434,-441,-444,-444,-438,-417,-420,-404,-443,-426,-612,-380,-997,-953,-29959,-5747,-29964,-29963,-29979,-29980,-29980,-29981,-29980,-29981,-29982,-29983,-29983,-29984,-29987,-29988,-29989,-29990]} 1. d4 {[%emt 0:00:03]} Nf6 {[%emt 0:00:48]} 2. Nf3 {[%emt 0:00:11]} e6 {[%emt 0:00:06]} 3. g3 {[%emt 0:00:12]} b5 {[%emt 0:00:29]} 4. Bg5 {[%emt 0:00:12]} Bb7 {[%emt 0:00:40]} 5. Nbd2 {[%emt 0:00:05]} c5 {[%emt 0:01:40]} 6. e4 {[%emt 0:03:14] A46: 1 d4 Nf6 2 Nf3 e6: Torre, London and Colle Systems.} Qb6 {[%emt 0:05:13]} 7. Bxf6 {[%emt 0:12:30]} gxf6 {[%emt 0:00:10]} 8. dxc5 {[%emt 0:01:36] The position is equal.} Bxc5 {[%emt 0:00:41]} 9. Qe2 {[%emt 0:00:09] [#]} Nc6 $146 {[%emt 0:02:46]} ({Predecessor:} 9... Ba6 10. Nb3 b4 11. Qd2 Bxf1 12. Kxf1 a5 13. Nxc5 Qxc5 14. Qf4 Qc4+ 15. Kg2 Ke7 {1-0 (31) Katopodis,D (2267)-Tsivelekidou,E (2007) Rio 2018}) 10. Nb3 {[%emt 0:11:37]} ({White should try} 10. Bg2 $11) 10... Be7 $15 {[%emt 0:05:44]} 11. O-O-O {[%emt 0:10:04]} a6 {[%emt 0:08:37]} 12. Kb1 {[%emt 0:04:38]} d6 {[%emt 0:03:30]} (12... b4 $15) 13. Nfd2 {[%emt 0:06:15]} h5 {[%emt 0:02:40]} 14. f4 {[%emt 0:01:13]} h4 {[%emt 0:02:39]} 15. Bg2 {[%emt 0:05:43]} (15. g4 $1 $11) 15... a5 $1 {[%emt 0:02:37]} 16. Nf3 {[%emt 0:00:14]} hxg3 {[%emt 0:10:07]} (16... b4 $1 $15) 17. hxg3 $11 {[%emt 0:00:07]} Rxh1 {[%emt 0:05:42]} 18. Bxh1 {[%emt 0:00:24]} b4 {[%emt 0:01:28]} 19. Nbd4 {[%emt 0:00:51]} (19. Nfd4 {looks sharper.} a4 20. Nxc6 axb3 21. Nxe7 Kxe7 22. e5) 19... O-O-O {[%emt 0:07:42]} 20. Nxc6 {[%emt 0:00:26]} Bxc6 {[%emt 0:00:40]} 21. Nd4 {[%emt 0:00:07]} Be8 {[%emt 0:02:34]} 22. Bf3 {[%emt 0:02:25]} Kb8 {[%emt 0:01:50]} 23. Qd3 {[%emt 0:12:34]} Rc8 {[%emt 0:02:27]} 24. Rc1 {[%emt 0:09:15]} a4 {[%emt 0:02:27]} 25. c4 {[%emt 0:00:41]} bxc3 {[%emt 0:01:42]} 26. Rxc3 {[%emt 0:00:04]} Rxc3 {[%emt 0:00:27]} 27. Qxc3 {[%emt 0:00:03]} f5 {[%emt 0:01:22]} 28. Ne2 {[%emt 0:05:04]} ({Don't go for} 28. exf5 $2 Bf6 29. a3 Bxd4 $19) 28... fxe4 {[%emt 0:03:38]} 29. Bxe4 {[%emt 0:00:02]} Bb5 {[%emt 0:00:39]} 30. Qh8+ {[%emt 0:03:52]} Kc7 {[%emt 0:01:49]} 31. Nd4 {[%emt 0:00:38]} (31. Qc3+ $11 {keeps the balance.} Kd7 32. Bd3) 31... Bd7 $1 $17 {[%emt 0:01:14]} 32. Ne2 {[%emt 0:01:43]} f6 {[%emt 0:04:10]} (32... d5 $17 33. Qc3+ Kb7) 33. a3 $1 $11 {[%emt 0:07:40]} d5 {[%emt 0:01:37]} 34. Bd3 {[%emt 0:00:08]} Qe3 {[%emt 0:07:19]} 35. Kc2 {[%emt 0:00:15]} Qb6 $40 {[%emt 0:02:15][%mdl 128] White must now prevent ...Qb3+. Black attacks.} 36. Kb1 {[%emt 0:00:32]} d4 {[%emt 0:03:27]} 37. Kc1 {[%emt 0:00:59] [#]} (37. Ka1 $1 $11 {remains equal.}) 37... Qb3 $1 $17 {[%emt 0:00:55]} 38. Qh7 {[%emt 0:00:41]} Bc5 {[%emt 0:00:51] ...f5 is the strong threat. Black is more active.} 39. g4 {[%emt 0:01:01][%mdl 8192] Against f5. This move loses the game for White.} (39. Bc2 $17 Qc4 40. Qd3 Qxd3 41. Bxd3) 39... f5 $19 {[%emt 0:00:54]} 40. Qh3 {[%emt 0:00:17]} (40. Bc2 $142 Qe3+ 41. Kb1 Qxe2 42. Bxa4 Qe4+ 43. Ka2 Qd5+ 44. Bb3) 40... fxg4 $2 {[%emt 0:00:38]} (40... Bb5 41. Qh7+ Kb6) 41. Qg3 {[%emt 0:00:02]} (41. Qh7) 41... Kb6 {[%emt 0:00:57] Hoping for ...Bb5.} 42. f5 {[%emt 0:01:02]} exf5 {[%emt 0:00:55][%cal Of5f4] And now ...f4! would win.} 43. Qb8+ {[%emt 0:00:48]} Kc6 {[%emt 0:00:23]} 44. Qa8+ {[%emt 0:00:16]} Kc7 {[%emt 0:00:48]} 45. Nf4 {[%emt 0:00:04] [#]} Bc6 $1 {[%emt 0:01:24]} 46. Qa5+ {[%emt 0:01:19]} Qb6 {[%emt 0:00:15]} 47. Qe1 {[%emt 0:00:53]} (47. Ne6+ $142 Kd6 48. Qe1 Bxa3 49. bxa3) 47... Kb7 {[%emt 0:00:38] Threatens to win with ...Bd6.} 48. Bxf5 $2 {[%emt 0:00:43]} (48. Qe5 g3 49. Ne6) 48... Bd6 {[%emt 0:01:05] A strong pair of Bishops.} 49. Ne6 {[%emt 0:01:23] Inhibits Qc5+.} g3 {[%emt 0:00:20][%cal Od4d3] ( -> ...d3!)} 50. Be4 {[%emt 0:00:33]} d3 {[%emt 0:00:46] Black mates.} 51. Kb1 {[%emt 0:00:37]} d2 {[%emt 0:00:47]} 52. Bxc6+ {[%emt 0:00:20]} Qxc6 {[%emt 0:00:10]} 53. Qxd2 {[%emt 0:00:32] KQB-KQN} Qe4+ {[%emt 0:00:07]} 54. Ka1 {[%emt 0:00:22]} Qxe6 {[%emt 0:00:11]} 55. Qg2+ {[%emt 0:00:10]} Kb6 {[%emt 0:01:03]} 56. Qa8 {[%emt 0:00:18]} Qd7 {[%emt 0:00:08]} 57. Qd5 {[%emt 0:00:09]} Qc6 {[%emt 0:00:12] Weighted Error Value: White=0.68/Black=0.27 (precise)} 0-1

[Event "Kvika Banki League Iceland 2022-23"]
[Site "Reykjavik"]
[Date "2022.10.15"]
[Round "4.19"]
[White "Ragnarsson, Dagur"]
[Black "Sulypa, Oleksandr"]
[Result "1/2-1/2"]
[ECO "D52"]
[WhiteElo "2348"]
[BlackElo "2463"]
[Annotator "TA"]
[PlyCount "64"]
[EventDate "2022.10.13"]
[EventType "team-tourn"]
[EventCountry "ISL"]
[SourceTitle "playchess.com"]
[Source "ChessBase"]
[SourceQuality "1"]
[TimeControl "5400+30"]

{[%evp 17,64,0,0,0,5,5,5,8,4,2,7,0,0,0,0,0,12,5,35,28,35,-25,-22,-16,0,-21,0,-52,8,7,13,-129,-71,-289,-289,-266,-268,-259,-241,-381,-384,-387,-383,-389,0,0,0,0,0]} 1. d4 {[%emt 0:00:10]} d5 {[%emt 0:00:07]} 2. c4 {[%emt 0:00:41]} c6 {[%emt 0:00:05]} 3. Nf3 {[%emt 0:00:35]} Nf6 {[%emt 0:00:06]} 4. Nc3 {[%emt 0:01:24]} e6 {[%emt 0:00:11]} 5. Bg5 {[%emt 0:03:04]} Nbd7 {[%emt 0:00:22]} 6. e3 {[%emt 0:00:15]} Qa5 {[%emt 0:00:14]} 7. cxd5 {[%emt 0:00:24]} Nxd5 {[%emt 0:00:24]} 8. Rc1 {[%emt 0:00:08]} Bb4 $1 {[%emt 0:00:26][%mdl 4] is more profitable than 8...Nxc3 at the moment.} 9. Qb3 {[%emt 0:05:10]} e5 {[%emt 0:09:46]} 10. Bc4 {[%emt 0:22:53] D52: Queen's Gambit Declined: Cambridge Springs Variation.} (10. dxe5 Nc5 11. Qc2 (11. Qc4 $2 h6 $19) 11... Qxa2 $17) 10... e4 {[%emt 0:10:29]} 11. Bxd5 {[%emt 0:01:37]} cxd5 {[%emt 0:00:13]} 12. Nd2 {[%emt 0:00:41] [#]} Nb6 $146 {[%emt 0:02:58]} ({Predecessor:} 12... O-O 13. a3 Bxc3 14. Rxc3 Nb6 15. Rc5 Qa6 16. Qa2 Na4 17. Rc1 Bf5 18. Nb1 Rac8 {0-1 (30) Couspeyre,T (1287)-Goreczny,G (1621) LSS email 2014}) 13. O-O {[%emt 0:04:06]} Bd7 {[%emt 0:32:43]} 14. a3 {[%emt 0:06:47]} Bxc3 {[%emt 0:02:23]} 15. Rxc3 {[%emt 0:00:59]} O-O {[%emt 0:01:32]} 16. Rfc1 {[%emt 0:11:18]} h6 {[%emt 0:11:05]} 17. Bf4 {[%emt 0:07:21]} Na4 {[%emt 0:03:20]} 18. R3c2 {[%emt 0:00:08]} (18. Qxb7 Nxc3 19. Rxc3 Qb6 $1 $17) 18... Rac8 {[%emt 0:01:04]} 19. f3 {[%emt 0:08:44]} (19. Qxb7 Qxd2 20. Bc7 Qd3 $17) (19. Bc7 $14 Nb6 20. Bxb6 axb6 21. Rxc8 Rxc8 22. Rxc8+ Bxc8 23. Qc2) 19... Rxc2 $11 {[%emt 0:04:51]} 20. Rxc2 {[%emt 0:01:03]} Bf5 {[%emt 0:01:19]} 21. g4 {[%emt 0:00:29]} (21. Qxb7 exf3 22. b4 Qd8 $17) 21... Be6 {[%emt 0:03:50]} 22. h3 {[%emt 0:02:17]} ({White should play} 22. Qxb7 $11 exf3 23. b4 (23. Nxf3 Bxg4 24. b4 Qb6 $11)) 22... h5 {[%emt 0:07:16]} (22... Qa6 $15) 23. Qxb7 {[%emt 0:02:08]} Nb6 {[%emt 0:00:53] ...Rc8 is the strong threat.} 24. gxh5 {[%emt 0:02:39]} (24. Bd6 $11 {remains equal.} Re8 25. fxe4) 24... Qb5 {[%emt 0:02:26]} (24... Rc8 $142 25. h6 Rxc2 26. Qb8+ Bc8) 25. Qe7 $2 {[%emt 0:10:41] [#]} (25. fxe4 $2 Qe2 26. Qe7 Qd1+ 27. Nf1 Qxc2 $19) (25. Qxa7 Qd3 26. Nxe4 (26. Qxb6 $2 Qxc2 27. Qb4 Qd1+ 28. Kf2 Rc8 $19) (26. Qc7 $2 Rc8 $19) 26... Qd1+ 27. Kg2 dxe4 $19) (25. Nxe4 $17 {might work better.} dxe4 26. h6) 25... Qe2 $1 $19 {[%emt 0:02:35] White must now prevent ...Qd1+.} 26. h6 {[%emt 0:00:11] Threatening mate with Qg5.} ({Of course not} 26. Bd6 Ra8 27. Qg5 exf3 $19) 26... exf3 {[%emt 0:00:45][%csl Gf3][%cal Re2g2]} 27. h7+ {[%emt 0:06:13]} Kxh7 {[%emt 0:00:02][%csl Gf3][%cal Re2g2]} 28. Nxf3 {[%emt 0:00:06]} (28. Qh4+ $142 Kg8 29. Qf2 Qd1+ 30. Nf1) 28... Qd1+ {[%emt 0:00:58]} ({Not} 28... Qxc2 29. Qxf8 f6 30. Qe8 $17) ({Worse is} 28... Qxf3 29. Rg2 Kg8 30. Rxg7+ Kxg7 31. Qg5+ Kh8 32. Qh6+ Kg8 33. Qg5+ Kh8 34. Qh6+ Kg8 35. Qg5+ Kh8 $11) 29. Ne1 {[%emt 0:00:07]} Qxe1+ {[%emt 0:00:13]} 30. Kh2 {[%emt 0:00:07]} Rc8 {[%emt 0:01:10]} (30... Bf5 $19 31. Rg2 Nd7) 31. Rg2 $11 {[%emt 0:00:08] White threatens Qg5 and mate. Chess con chili.} Rc1 {[%emt 0:01:38] ( -> ...Qh1+)} (31... g6 $5 32. Qg5 $8 Kg8 $11) 32. Rxg7+ $1 {[%emt 0:00:12]} Kxg7 {[%emt 0:00:16] Weighted Error Value: White=0.34/Black=0.40} 1/2-1/2